fUST/lending_fUST_20250619
["ID","MTS","AMOUNT","RATE_DAILY","PERIOD"]
[366480098,1750279868982,-9297.97677123,0.0002394,7]
[366480099,1750279868994,-53615.01227526,0.0002394,7]
[366480100,1750279869250,-354.3008366,0.0002137,2]
[366480101,1750279869260,-460.0,0.00021917,6]
[366480102,1750279869269,-460.0,0.00021917,6]
[366480103,1750279869278,-40.34103512,0.00023616,2]
[366480104,1750279869501,-574.2153043,0.0002137,2]
[366480105,1750279869521,-384.81838807,0.00021917,6]
[366480106,1750279869545,-277.64061208,0.00023616,2]
[366480107,1750279869566,-150.0,0.00023659,2]
[366480108,1750279869584,-150.0,0.00023659,2]
[366480109,1750279869602,-9082.90616051,0.0002394,7]
[366480110,1750279869622,-1145.81907639,0.0002394,7]
[366480111,1750279929693,358.47,0.00018448,2]
[366480114,1750279981969,274.566633,0.00013699,2]
[366480115,1750280012137,353.91,0.0001828,2]
[366480116,1750280012814,-211.53781947,0.0001915,2]
[366480118,1750280093220,346.72,0.00018284,2]
[366480119,1750280094242,-187.7160983,0.00019155,2]
[366480120,1750280173875,339.91,0.00018291,2]
[366480122,1750280252519,335.59,0.00018285,2]
[366480123,1750280333565,348.66,0.00018348,2]
[366480124,1750280415158,344.22,0.00018288,2]
[366480125,1750280423984,2000.0,0.00019672,120]
[366480126,1750280495974,339.84,0.00018284,2]
[366480127,1750280575076,335.52,0.00018323,2]
[366480128,1750280661334,331.25,0.00018303,2]
[366480129,1750280687732,1000.0,0.00024,120]
[366480130,1750280743116,327.03,0.00018334,2]
[366480131,1750280756940,1245.0,0.000244,120]
[366480132,1750280821871,322.87,0.00018289,2]
[366480133,1750280905975,318.76,0.00018287,2]
[366480134,1750280959630,260.838301,0.00013699,2]
[366480136,1750280993350,314.7,0.00018292,2]
[366480193,1750281032722,-629.41,0.00019163,2]
[366480194,1750281032732,-197.439961,0.00019178,2]
[366480195,1750281032741,-300.0,0.00019603,2]
[366480196,1750281032752,-833.20604706,0.00019603,2]
[366480197,1750281032764,-366.79395294,0.00019603,2]
[366480198,1750281032774,-268.8338297,0.00019604,2]
[366480199,1750281032783,-500.0,0.00019604,2]
[366480201,1750281032793,-500.0,0.00019604,2]
[366480203,1750281032802,-438.6555915,0.00019604,2]
[366480205,1750281032812,-300.0,0.00019604,2]
[366480207,1750281032822,-24900.0,0.00019605,2]
[366480209,1750281032831,-399.2539178,0.00019708,2]
[366480211,1750281032841,-160.0,0.00019989,2]
[366480213,1750281032850,-944.11,0.00020034,2]
[366480215,1750281032859,-210.64665898,0.00020084,2]
[366480217,1750281032869,-364.26205,0.00020093,2]
[366480219,1750281032878,-260.838301,0.00020187,2]
[366480221,1750281032888,-666.0,0.00020274,2]
[366480223,1750281032897,-795.732238,0.00020316,2]
[366480225,1750281032906,-2938.1870257,0.00020436,2]
[366480227,1750281032916,-3377.3241703,0.00020705,2]
[366480229,1750281032925,-1086.35750614,0.000209,4]
[366480231,1750281032939,-1258.81,0.00020905,2]
[366480233,1750281032948,-1086.35750597,0.00021072,4]
[366480235,1750281032958,-227.70129222,0.00021239,2]
[366480237,1750281032967,-5000.0,0.0002124,2]
[366480239,1750281032978,-207.4,0.0002124,2]
[366480241,1750281032987,-500.0,0.0002124,2]
[366480242,1750281032997,-1688.0,0.0002124,2]
[366480245,1750281033008,-500.0,0.0002124,2]
[366480247,1750281033017,-500.0,0.0002124,2]
[366480249,1750281033028,-500.0,0.0002124,2]
[366480251,1750281033039,-500.0,0.0002124,2]
[366480253,1750281033049,-500.0,0.0002124,2]
[366480255,1750281033059,-500.0,0.0002124,2]
[366480257,1750281033069,-500.0,0.0002124,2]
[366480259,1750281033080,-500.0,0.0002124,2]
[366480261,1750281033089,-500.0,0.0002124,2]
[366480263,1750281033100,-500.0,0.0002124,2]
[366480265,1750281033110,-500.0,0.0002124,2]
[366480267,1750281033120,-500.0,0.0002124,2]
[366480269,1750281033130,-500.0,0.0002124,2]
[366480270,1750281033140,-500.0,0.0002124,2]
[366480271,1750281033151,-500.0,0.0002124,2]
[366480272,1750281033161,-500.0,0.0002124,2]
[366480273,1750281033171,-365.9800867,0.0002124,2]
[366480274,1750281033188,-134.0199133,0.0002124,2]
[366480275,1750281033197,-500.0,0.0002124,2]
[366480276,1750281033206,-261.02732406,0.0002124,2]
[366480277,1750281033218,-238.97267594,0.0002124,2]
[366480278,1750281033227,-500.0,0.0002124,2]
[366480279,1750281033237,-500.0,0.0002124,2]
[366480280,1750281033247,-500.0,0.0002124,2]
[366480281,1750281033258,-17.74123889,0.0002124,2]
[366480282,1750281033270,-482.25876111,0.0002124,2]
[366480283,1750281033279,-500.0,0.0002124,2]
[366480284,1750281033289,-500.0,0.0002124,2]
[366480285,1750281033299,-500.0,0.0002124,2]
[366480286,1750281033309,-500.0,0.0002124,2]
[366480287,1750281033319,-500.0,0.0002124,2]
[366480288,1750281033329,-500.0,0.0002124,2]
[366480289,1750281033338,-1086.35750597,0.00021245,4]
[366480290,1750281033347,-176.93654487,0.00021295,2]
[366480291,1750281033359,-554.66825913,0.00021295,2]
[366480292,1750281033368,-420.0,0.00021354,2]
[366480293,1750281033377,-420.0,0.00021355,2]
[366480294,1750281033386,-160.0,0.00021359,2]
[366480295,1750281033395,-1086.35750597,0.00021417,5]
[366480296,1750281033405,-295.958,0.00021471,2]
[366480297,1750281033414,-424.70586748,0.00021472,2]
[366480298,1750281033424,-229.98435572,0.00021472,2]
[366480299,1750281033433,-12542.39314967,0.00021472,2]
[366480300,1750281033443,-160.0,0.00021472,2]
[366480301,1750281033452,-160.0,0.00021472,2]
[366480303,1750281033463,-160.0,0.00021472,2]
[366480304,1750281033473,-160.0,0.00021472,2]
[366480305,1750281033482,-160.0,0.00021472,2]
[366480306,1750281033494,-835.98428123,0.00021472,2]
[366480307,1750281033506,-213.43818883,0.00021472,2]
[366480309,1750281033516,-911.94354212,0.00021568,2]
[366480311,1750281033526,-1086.35750597,0.0002159,5]
[366480313,1750281033536,-168.0,0.00021728,2]
[366480315,1750281033545,-1086.35750597,0.00021762,5]
[366480317,1750281033555,-1573.52,0.00021776,2]
[366480319,1750281033566,-168.0,0.00021784,2]
[366480321,1750281033575,-3516.11640459,0.00021788,2]
[366480365,1750281038594,-733.01926902,0.00021472,2]
[366480367,1750281038645,-112.76266675,0.00021472,2]
[366480369,1750281038655,-1483.88359541,0.00021788,2]
[366480370,1750281038665,-228.61,0.00021907,10]
[366480371,1750281038674,-500.0,0.00021916,2]
[366480373,1750281038683,-460.0,0.00021917,6]
[366480374,1750281038692,-309.57553644,0.00021917,6]
[366480375,1750281038704,-150.42446356,0.00021917,6]
[366480376,1750281038713,-460.0,0.00021917,6]
[366480377,1750281038723,-460.0,0.00021917,6]
[366480378,1750281038732,-460.0,0.00021917,6]
[366480379,1750281038742,-460.0,0.00021917,6]
[366480380,1750281038751,-460.0,0.00021917,6]
[366480381,1750281038762,-460.0,0.00021917,6]
[366480382,1750281038772,-500.0,0.00021917,6]
[366480383,1750281038782,-190.35361079,0.00021917,2]
[366480384,1750281038791,-460.0,0.00021917,6]
[366480385,1750281038801,-460.0,0.00021917,2]
[366480386,1750281038810,-460.0,0.00021917,6]
[366480387,1750281038819,-460.0,0.00021917,6]
[366480388,1750281038829,-460.0,0.00021917,6]
[366480389,1750281038839,-460.0,0.00021917,6]
[366480390,1750281038849,-460.0,0.00021917,6]
[366480391,1750281038858,-460.0,0.00021917,6]
[366480392,1750281038868,-190.0,0.00021917,6]
[366480393,1750281038877,-327.33174532,0.00021917,6]
[366480394,1750281038886,-460.0,0.00021917,6]
[366480395,1750281038895,-557.45,0.00021917,6]
[366480396,1750281038906,-460.0,0.00021917,6]
[366480397,1750281038915,-460.0,0.00021917,6]
[366480398,1750281038924,-460.0,0.00021917,6]
[366480399,1750281038938,-462.6392093,0.00021917,6]
[366480400,1750281038948,-460.0,0.00021917,2]
[366480401,1750281038957,-460.0,0.00021917,6]
[366480402,1750281038967,-630.37,0.00021917,6]
[366480403,1750281038978,-460.0,0.00021917,6]
[366480404,1750281038987,-457.98005441,0.00021917,6]
[366480405,1750281038997,-460.0,0.00021917,6]
[366480406,1750281039007,-597.45,0.00021917,6]
[366480407,1750281039017,-460.0,0.00021917,6]
[366480408,1750281039026,-460.0,0.00021917,6]
[366480409,1750281039036,-460.0,0.00021917,6]
[366480410,1750281039046,-460.0,0.00021917,6]
[366480411,1750281039057,-460.0,0.00021917,6]
[366480412,1750281039067,-400.0,0.00021917,6]
[366480413,1750281039076,-159.83177003,0.00021917,6]
[366480414,1750281039086,-460.0,0.00021917,6]
[366480415,1750281039095,-460.0,0.00021917,6]
[366480416,1750281039105,-460.0,0.00021917,6]
[366480417,1750281039115,-460.0,0.00021917,6]
[366480418,1750281039124,-460.0,0.00021917,6]
[366480419,1750281039133,-460.0,0.00021917,6]
[366480420,1750281039143,-460.0,0.00021917,6]
[366480421,1750281039152,-460.0,0.00021917,6]
[366480422,1750281039161,-1873.52,0.00021917,6]
[366480423,1750281039171,-580.54,0.00021917,6]
[366480424,1750281039180,-500.0,0.00021917,6]
[366480425,1750281039191,-281.94,0.00021917,6]
[366480427,1750281039201,-460.0,0.00021917,6]
[366480428,1750281039211,-548.41,0.00021917,6]
[366480429,1750281039220,-460.0,0.00021917,6]
[366480430,1750281039231,-722.04,0.00021917,6]
[366480431,1750281039240,-672.9,0.00021917,6]
[366480432,1750281039250,-494.35585953,0.00021917,6]
[366480433,1750281039260,-460.0,0.00021917,6]
[366480434,1750281039270,-460.0,0.00021917,6]
[366480435,1750281039280,-460.0,0.00021917,6]
[366480436,1750281039289,-460.0,0.00021917,6]
[366480437,1750281039299,-3067.17,0.00021917,6]
[366480438,1750281039309,-460.0,0.00021917,6]
[366480439,1750281039318,-467.15,0.00021917,6]
[366480440,1750281039328,-216.41081921,0.00021917,6]
[366480441,1750281039338,-460.0,0.00021917,6]
[366480442,1750281039347,-460.0,0.00021917,6]
[366480443,1750281039357,-460.0,0.00021917,6]
[366480444,1750281039366,-754.83,0.00021917,6]
[366480445,1750281039376,-638.21,0.00021917,6]
[366480446,1750281039386,-460.0,0.00021917,6]
[366480447,1750281039395,-3481.71,0.00021917,6]
[366480448,1750281039404,-460.0,0.00021917,6]
[366480449,1750281039414,-460.0,0.00021917,6]
[366480450,1750281039423,-1060.79,0.00021917,6]
[366480451,1750281039432,-460.0,0.00021917,6]
[366480452,1750281039442,-2068.17,0.00021917,6]
[366480453,1750281039451,-538.2,0.00021917,6]
[366480454,1750281039461,-460.0,0.00021917,6]
[366480455,1750281039471,-2731.26,0.00021917,6]
[366480456,1750281039481,-576.92,0.00021917,6]
[366480457,1750281039491,-460.0,0.00021917,6]
[366480458,1750281039500,-460.0,0.00021917,6]
[366480459,1750281039512,-460.0,0.00021917,6]
[366480460,1750281039521,-890.04,0.00021917,6]
[366480461,1750281039531,-342.55604568,0.00021917,6]
[366480462,1750281039541,-460.0,0.00021917,6]
[366480463,1750281039550,-1440.36,0.00021917,6]
[366480464,1750281039560,-460.0,0.00021917,6]
[366480465,1750281039570,-1205.57,0.00021917,6]
[366480466,1750281039579,-460.0,0.00021917,6]
[366480467,1750281039588,-460.0,0.00021917,6]
[366480468,1750281039598,-460.0,0.00021917,6]
[366480469,1750281039608,-460.0,0.00021917,6]
[366480470,1750281039617,-635.68,0.00021917,6]
[366480471,1750281039626,-460.0,0.00021917,6]
[366480472,1750281039636,-460.0,0.00021917,6]
[366480473,1750281039645,-495.77,0.00021917,6]
[366480474,1750281039654,-460.0,0.00021917,6]
[366480475,1750281039663,-460.0,0.00021917,6]
[366480476,1750281039672,-460.0,0.00021917,6]
[366480477,1750281039682,-460.0,0.00021917,6]
[366480478,1750281039692,-483.72233479,0.00021917,6]
[366480479,1750281039702,-460.0,0.00021917,6]
[366480480,1750281039712,-460.0,0.00021917,6]
[366480481,1750281039722,-460.0,0.00021917,6]
[366480482,1750281039731,-486.37,0.00021917,6]
[366480483,1750281039740,-460.0,0.00021917,6]
[366480484,1750281039749,-607.07088979,0.00021917,2]
[366480485,1750281039761,-460.0,0.00021917,6]
[366480486,1750281039770,-460.0,0.00021917,6]
[366480487,1750281039780,-1892.68,0.00021917,6]
[366480488,1750281039789,-1148.71,0.00021917,6]
[366480489,1750281039799,-460.0,0.00021917,6]
[366480490,1750281039808,-515.91,0.00021917,6]
[366480491,1750281039817,-460.0,0.00021917,6]
[366480492,1750281039827,-460.0,0.00021917,6]
[366480493,1750281039837,-747.44,0.00021917,6]
[366480494,1750281039847,-1327.79,0.00021917,6]
[366480495,1750281039856,-460.0,0.00021917,6]
[366480496,1750281039865,-460.0,0.00021917,6]
[366480497,1750281039875,-1381.72,0.00021917,6]
[366480498,1750281039884,-487.26284046,0.00021917,6]
[366480499,1750281039894,-174.32312176,0.00021917,6]
[366480500,1750281039903,-460.0,0.00021917,6]
[366480501,1750281039912,-460.45,0.00021917,6]
[366480502,1750281039921,-460.0,0.00021917,6]
[366480503,1750281039931,-460.0,0.00021917,6]
[366480504,1750281039943,-420.0,0.00021917,6]
[366480505,1750281039953,-460.0,0.00021917,6]
[366480506,1750281039961,-830.62,0.00021917,6]
[366480507,1750281039970,-460.0,0.00021917,6]
[366480508,1750281039982,-460.0,0.00021917,6]
[366480509,1750281039991,-432.2598092,0.00021917,6]
[366480511,1750281040000,-4855.86,0.00021917,6]
[366480512,1750281040010,-460.0,0.00021917,6]
[366480513,1750281040020,-460.0,0.00021917,6]
[366480514,1750281040030,-460.0,0.00021917,6]
[366480515,1750281040040,-460.0,0.00021917,6]
[366480516,1750281040049,-430.0,0.00021917,6]
[366480517,1750281040059,-460.0,0.00021917,6]
[366480518,1750281040069,-460.0,0.00021917,6]
[366480519,1750281040204,-639.2,0.00021917,6]
[366480520,1750281040215,-987.31,0.00021917,6]
[366480521,1750281040224,-431.42807953,0.00021917,6]
[366480522,1750281040234,-1329.95,0.00021917,6]
[366480523,1750281040244,-460.0,0.00021917,6]
[366480524,1750281040254,-2650.36,0.00021917,6]
[366480525,1750281040265,-460.0,0.00021917,6]
[366480526,1750281040274,-460.0,0.00021917,6]
[366480527,1750281040284,-3210.87,0.00021917,6]
[366480528,1750281040294,-462.83,0.00021917,6]
[366480529,1750281040304,-1086.35750597,0.00021934,6]
[366480530,1750281040313,-2340.82333551,0.00021941,2]
[366480531,1750281040323,-500.0,0.00021973,2]
[366480533,1750281040332,-170.0,0.00022,2]
[366480535,1750281040342,-178.28239014,0.00022091,2]
[366480537,1750281040352,-1086.35750597,0.00022107,6]
[366480539,1750281040362,-323.86404227,0.00022121,2]
[366480541,1750281040372,-500.0,0.00022173,2]
[366480543,1750281040382,-258.92658341,0.00022173,2]
[366480545,1750281040392,-500.0,0.00022173,2]
[366480547,1750281040402,-460.0,0.00022191,6]
[366480549,1750281040412,-460.0,0.00022191,6]
[366480551,1750281040422,-460.0,0.00022191,6]
[366480552,1750281040432,-460.0,0.00022191,6]
[366480553,1750281040441,-460.0,0.00022191,6]
[366480554,1750281040451,-460.0,0.00022191,6]
[366480555,1750281040462,-460.0,0.00022191,6]
[366480556,1750281040472,-460.0,0.00022191,6]
[366480557,1750281040482,-460.0,0.00022191,6]
[366480558,1750281040491,-460.0,0.00022191,2]
[366480559,1750281040502,-460.0,0.00022191,6]
[366480560,1750281040512,-327.49199529,0.00022191,6]
[366480561,1750281040522,-445.07913689,0.00022191,6]
[366480562,1750281040532,-460.0,0.00022191,6]
[366480563,1750281040542,-460.0,0.00022191,6]
[366480564,1750281040552,-460.0,0.00022191,6]
[366480565,1750281040561,-557.45,0.00022191,6]
[366480566,1750281040571,-460.0,0.00022191,6]
[366480567,1750281040581,-460.0,0.00022191,6]
[366480568,1750281040591,-460.0,0.00022191,6]
[366480569,1750281040600,-630.37,0.00022191,6]
[366480570,1750281040610,-460.0,0.00022191,6]
[366480571,1750281040622,-460.0,0.00022191,6]
[366480572,1750281040631,-597.45,0.00022191,6]
[366480573,1750281040641,-460.0,0.00022191,6]
[366480574,1750281040651,-460.0,0.00022191,6]
[366480575,1750281040660,-380.0,0.00022191,6]
[366480576,1750281040670,-166.00946533,0.00022191,6]
[366480577,1750281040679,-306.93073929,0.00022191,6]
[366480578,1750281040689,-460.0,0.00022191,6]
[366480579,1750281040699,-460.0,0.00022191,6]
[366480581,1750281040708,-460.0,0.00022191,6]
[366480582,1750281040718,-460.0,0.00022191,6]
[366480583,1750281040727,-460.0,0.00022191,6]
[366480584,1750281040737,-460.0,0.00022191,6]
[366480585,1750281040747,-170.63693823,0.00022191,6]
[366480587,1750281040758,-1873.52,0.00022191,6]
[366480589,1750281040768,-580.54,0.00022191,6]
[366480591,1750281040777,-548.41,0.00022191,6]
[366480593,1750281040787,-460.0,0.00022191,6]
[366480595,1750281040796,-722.04,0.00022191,6]
[366480597,1750281040806,-672.9,0.00022191,6]
[366480599,1750281040816,-460.0,0.00022191,6]
[366480600,1750281040826,-460.0,0.00022191,6]
[366480601,1750281040835,-460.0,0.00022191,6]
[366480603,1750281040846,-460.0,0.00022191,6]
[366480605,1750281040855,-3067.17,0.00022191,6]
[366480607,1750281040864,-460.0,0.00022191,6]
[366480609,1750281040873,-467.15,0.00022191,6]
[366480611,1750281040883,-460.0,0.00022191,6]
[366480613,1750281040892,-460.0,0.00022191,6]
[366480615,1750281040902,-460.0,0.00022191,6]
[366480617,1750281040911,-754.83,0.00022191,6]
[366480619,1750281040920,-638.21,0.00022191,6]
[366480621,1750281040930,-1773.09070508,0.00022191,6]
[366480624,1750281040949,-1708.61929492,0.00022191,6]
[366480626,1750281040959,-460.0,0.00022191,6]
[366480628,1750281040968,-1060.79,0.00022191,6]
[366480629,1750281040979,-460.0,0.00022191,6]
[366480630,1750281040988,-460.0,0.00022191,6]
[366480631,1750281040997,-2068.17,0.00022191,6]
[366480632,1750281041007,-538.2,0.00022191,6]
[366480634,1750281041017,-460.0,0.00022191,6]
[366480636,1750281041027,-2731.26,0.00022191,6]
[366480638,1750281041037,-576.92,0.00022191,6]
[366480640,1750281041046,-460.0,0.00022191,6]
[366480643,1750281041056,-401.04070508,0.00022191,6]
[366480650,1750281041141,-160.0,0.00021916,2]
[366480653,1750281041150,-58.95929492,0.00022191,6]
[366480655,1750281041161,-460.0,0.00022191,6]
[366480656,1750281041171,-890.04,0.00022191,6]
[366480657,1750281041180,-460.0,0.00022191,6]
[366480659,1750281041190,-1440.36,0.00022191,6]
[366480661,1750281041200,-476.19241809,0.00022191,6]
[366480662,1750281041210,-318.40373783,0.00022191,6]
[366480663,1750281041221,-887.16626217,0.00022191,6]
[366480664,1750281041232,-460.0,0.00022191,6]
[366480665,1750281041242,-460.0,0.00022191,6]
[366480666,1750281041251,-402.2010019,0.00022191,6]
[366480681,1750281043651,-356.93,0.00021907,10]
[366480682,1750281043661,-57.7989981,0.00022191,6]
[366480683,1750281043670,-460.0,0.00022191,6]
[366480684,1750281043679,-635.68,0.00022191,6]
[366480685,1750281043688,-460.0,0.00022191,6]
[366480686,1750281043697,-460.0,0.00022191,6]
[366480687,1750281043707,-495.77,0.00022191,6]
[366480688,1750281043716,-460.0,0.00022191,6]
[366480689,1750281043725,-390.0,0.00022191,6]
[366480690,1750281043734,-460.0,0.00022191,6]
[366480691,1750281043743,-414.57606128,0.00022191,6]
[366480822,1750281151846,301.7,0.00018334,2]
[366480823,1750281152947,-584.77957175,0.00019207,2]
[366480824,1750281231603,290.42,0.00018379,2]
[366480826,1750281312122,286.72,0.00018361,2]
[366480829,1750281392535,283.07,0.00018402,2]
[366480832,1750281471177,2000.0,0.00020874,120]
[366480833,1750281471991,279.47,0.00018392,2]
[366480835,1750281553718,275.91,0.00018394,2]
[366480836,1750281632509,272.4,0.00018354,2]
[366480837,1750281711822,268.93,0.00018322,2]
[366480838,1750281794721,265.51,0.00018314,2]
[366480839,1750281812703,154.15271675,0.00019086,2]
[366480840,1750281879130,262.13,0.00018395,2]
[366480841,1750281886574,245.226628,0.00013699,2]
[366480843,1750281960697,258.79,0.00018381,2]
[366480844,1750282040024,295.85,0.00018352,2]
[366480846,1750282120038,160.24085175,0.00018306,2]
[366480847,1750282120062,131.84914825,0.00018306,2]
[366480848,1750282124140,525.0,0.0002524,120]
[366480859,1750282199956,288.37,0.00018305,2]
[366480896,1750282231911,-5000.0,0.00019157,2]
[366480899,1750282231920,-576.74,0.00019177,2]
[366480902,1750282231930,-200.0,0.00019257,2]
[366480904,1750282231939,-157.951968,0.00019713,2]
[366480906,1750282231948,-865.1,0.00020048,2]
[366480908,1750282231958,-200.1,0.00020143,2]
[366480910,1750282231967,-245.226628,0.00020187,2]
[366480912,1750282231976,-323.0,0.00020666,2]
[366480914,1750282231986,-300.0,0.00020667,2]
[366480916,1750282231996,-300.0,0.00020667,2]
[366480918,1750282232005,-500.0,0.00020668,2]
[366480920,1750282232015,-500.0,0.00020668,2]
[366480922,1750282232025,-500.0,0.00020668,2]
[366480924,1750282232034,-251.74445988,0.00020668,2]
[366480927,1750282232043,-24900.0,0.00020669,2]
[366480930,1750282232052,-1587.4669944,0.00020674,2]
[366480932,1750282232061,-274.56,0.00020693,2]
[366480934,1750282232071,-397.866119,0.00020774,2]
[366480936,1750282232079,-666.0,0.00020848,2]
[366480938,1750282232089,-1463.28359758,0.000209,4]
[366480940,1750282232098,-1153.47,0.0002092,2]
[366480942,1750282232107,-268.75604632,0.00021,2]
[366480943,1750282232116,-1492.63398559,0.00021,2]
[366480945,1750282232126,-506.68101698,0.00021,2]
[366480947,1750282232136,-201.02198971,0.00021,2]
[366480949,1750282232145,-1463.28359729,0.00021072,4]
[366480951,1750282232154,-159.39090455,0.00021239,2]
[366480952,1750282232163,-207.4,0.0002124,2]
[366480953,1750282232173,-5000.0,0.0002124,2]
[366480954,1750282232182,-1688.0,0.0002124,2]
[366480955,1750282232191,-500.0,0.0002124,2]
[366480957,1750282232200,-500.0,0.0002124,2]
[366480959,1750282232211,-500.0,0.0002124,2]
[366480960,1750282232219,-500.0,0.0002124,2]
[366480961,1750282232228,-500.0,0.0002124,2]
[366480963,1750282232237,-500.0,0.0002124,2]
[366480964,1750282232246,-500.0,0.0002124,2]
[366480965,1750282232255,-500.0,0.0002124,2]
[366480966,1750282232402,-500.0,0.0002124,2]
[366480967,1750282232412,-500.0,0.0002124,2]
[366480968,1750282232421,-500.0,0.0002124,2]
[366480969,1750282232430,-500.0,0.0002124,2]
[366480970,1750282232439,-500.0,0.0002124,2]
[366480971,1750282232448,-500.0,0.0002124,2]
[366480972,1750282232457,-500.0,0.0002124,2]
[366480973,1750282232466,-500.0,0.0002124,2]
[366480974,1750282232475,-500.0,0.0002124,2]
[366480975,1750282232484,-500.0,0.0002124,2]
[366480976,1750282232493,-500.0,0.0002124,2]
[366480977,1750282232502,-500.0,0.0002124,2]
[366480978,1750282232511,-500.0,0.0002124,2]
[366480979,1750282232520,-500.0,0.0002124,2]
[366480980,1750282232530,-500.0,0.0002124,2]
[366480981,1750282232539,-500.0,0.0002124,2]
[366480982,1750282232548,-500.0,0.0002124,2]
[366480983,1750282232558,-500.0,0.0002124,2]
[366480984,1750282232567,-500.0,0.0002124,2]
[366480985,1750282232576,-500.0,0.0002124,2]
[366480986,1750282232586,-500.0,0.0002124,2]
[366480987,1750282232595,-500.0,0.0002124,2]
[366480988,1750282232604,-25000.0,0.0002124,2]
[366480989,1750282232614,-1463.28359729,0.00021245,4]
[366480990,1750282232623,-1750.456,0.00021295,2]
[366480991,1750282232633,-1815.222872,0.0002135,2]
[366480992,1750282232642,-1882.38611826,0.00021405,2]
[366480993,1750282232652,-1463.28359729,0.00021417,5]
[366480994,1750282232661,-297.44,0.0002145,10]
[366480995,1750282232671,-800.99746663,0.0002146,2]
[366480996,1750282232679,-229.98435572,0.00021481,2]
[366480997,1750282232688,-160.0,0.00021481,2]
[366480998,1750282232698,-1463.28359729,0.0002159,5]
[366480999,1750282232707,-12542.39314967,0.0002176,2]
[366481000,1750282232716,-160.0,0.0002176,2]
[366481001,1750282232725,-160.0,0.0002176,2]
[366481002,1750282232734,-835.98428123,0.0002176,2]
[366481003,1750282232744,-1463.28359729,0.00021762,5]
[366481004,1750282232753,-5000.0,0.00021788,2]
[366481005,1750282232762,-25000.0,0.00021788,2]
[366481006,1750282232771,-1441.84,0.00021792,2]
[366481007,1750282232781,-468.05002666,0.00021817,2]
[366481008,1750282232791,-55993.79211832,0.00021817,2]
[366481009,1750282232800,-424.70586748,0.00021914,2]
[366481010,1750282232810,-500.0,0.00021916,2]
[366481011,1750282232819,-160.0,0.00021916,2]
[366481012,1750282232828,-460.0,0.00021917,6]
[366481013,1750282232837,-460.0,0.00021917,6]
[366481014,1750282232848,-460.0,0.00021917,6]
[366481015,1750282232858,-460.0,0.00021917,6]
[366481016,1750282232867,-460.0,0.00021917,6]
[366481017,1750282232876,-460.0,0.00021917,6]
[366481018,1750282232885,-440.0,0.00021917,6]
[366481019,1750282232895,-420.0,0.00021917,6]
[366481020,1750282232904,-420.0,0.00021917,6]
[366481021,1750282232913,-460.0,0.00021917,6]
[366481022,1750282232922,-460.0,0.00021917,6]
[366481023,1750282232931,-420.0,0.00021917,6]
[366481024,1750282232940,-460.0,0.00021917,6]
[366481025,1750282232949,-460.0,0.00021917,6]
[366481026,1750282232958,-326.08095417,0.00021917,6]
[366481027,1750282232968,-440.0,0.00021917,6]
[366481028,1750282232978,-578.04963271,0.00021917,6]